[Event "Titled Tuesday Blitz May 10 Early 2022"]
[White "Korchmar, Vasiliy"]
[Black "Khabinets, Ivan"]
[WhiteFideId "24131750"]
[BlackFideId "14115980"]
[WhiteElo "2370"]
[BlackElo "2114"]
[Result "0-1"]
[Round "11"]
[TimeControl "180+1"]
[Date "2022.05.10"]
[WhiteClock "0:00:37"]
[BlackClock "0:01:16"]

1. e4 {[%clk 0:03:00]}  c5 {[%clk 0:02:56]} 2. Nf3 {[%clk 0:03:00]}  d6 {[%clk 0:02:57]} 3. d4 {[%clk 0:03:01]}  cxd4 {[%clk 0:02:58]} 4. Nxd4 {[%clk 0:03:02]}  Nf6 {[%clk 0:02:59]} 5. Nc3 {[%clk 0:03:02]}  a6 {[%clk 0:02:59]} 6. f3 {[%clk 0:03:03]}  e5 {[%clk 0:02:59]} 7. Nb3 {[%clk 0:03:02]}  Be6 {[%clk 0:03:00]} 8. Be3 {[%clk 0:03:03]}  Be7 {[%clk 0:03:00]} 9. Qd2 {[%clk 0:03:03]}  Nbd7 {[%clk 0:03:00]} 10. g4 {[%clk 0:03:04]}  b5 {[%clk 0:02:59]} 11. g5 {[%clk 0:03:03]}  Nh5 {[%clk 0:02:59]} 12. O-O-O {[%clk 0:03:01]}  O-O {[%clk 0:02:59]} 13. Kb1 {[%clk 0:02:54]}  Nb6 {[%clk 0:02:58]} 14. Na5 {[%clk 0:02:54]}  Qc7 {[%clk 0:02:56]} 15. Nd5 {[%clk 0:02:51]}  Nxd5 {[%clk 0:02:41]} 16. exd5 {[%clk 0:02:52]}  Bxd5 {[%clk 0:02:42]} 17. Qxd5 {[%clk 0:02:48]}  Qxa5 {[%clk 0:02:42]} 18. c4 {[%clk 0:02:37]}  Qb4 {[%clk 0:02:36]} 19. cxb5 {[%clk 0:02:17]}  axb5 {[%clk 0:02:33]} 20. Bxb5 {[%clk 0:02:11]}  Rfb8 {[%clk 0:02:18]} 21. Rc1 {[%clk 0:01:53]}  Bf8 {[%clk 0:02:03]} 22. a4 {[%clk 0:01:29]}  Rxa4 {[%clk 0:02:02]} 23. Rc4 {[%clk 0:01:29]}  Qb3 {[%clk 0:01:25]} 24. Qd1 {[%clk 0:00:37]}  Qxb5 {[%clk 0:01:16]} 0-1


[Site "https://www.chess.com"]

[Event "Titled Tuesday Blitz May 10 Early 2022"]
[White "Kozak, Antoni"]
[Black "Daneshvar, Bardiya"]
[WhiteFideId "21832030"]
[BlackFideId "12576468"]
[WhiteElo "2322"]
[BlackElo "2330"]
[Result "0-1"]
[Round "11"]
[TimeControl "180+1"]
[Date "2022.05.10"]
[WhiteClock "0:00:01"]
[BlackClock "0:00:29"]

1. c4 {[%clk 0:03:00]}  g6 {[%clk 0:02:53]} 2. Nc3 {[%clk 0:03:00]}  Bg7 {[%clk 0:02:53]} 3. d4 {[%clk 0:03:00]}  d6 {[%clk 0:02:52]} 4. e4 {[%clk 0:03:00]}  Nc6 {[%clk 0:02:52]} 5. Be3 {[%clk 0:02:58]}  e5 {[%clk 0:02:52]} 6. d5 {[%clk 0:02:56]}  Nce7 {[%clk 0:02:52]} 7. g4 {[%clk 0:02:52]}  f5 {[%clk 0:02:49]} 8. gxf5 {[%clk 0:02:52]}  gxf5 {[%clk 0:02:50]} 9. Qh5+ {[%clk 0:02:52]}  Kf8 {[%clk 0:02:49]} 10. Bh3 {[%clk 0:02:44]}  Nf6 {[%clk 0:02:46]} 11. Qf3 {[%clk 0:02:35]}  f4 {[%clk 0:02:41]} 12. Bd2 {[%clk 0:02:35]}  Ng6 {[%clk 0:02:39]} 13. Bxc8 {[%clk 0:02:32]}  Qxc8 {[%clk 0:02:40]} 14. h4 {[%clk 0:02:32]}  h5 {[%clk 0:02:39]} 15. Qh3 {[%clk 0:02:10]}  Qg4 {[%clk 0:02:28]} 16. Nf3 {[%clk 0:02:05]}  Nh7 {[%clk 0:02:14]} 17. Ke2 {[%clk 0:02:03]}  Bf6 {[%clk 0:02:10]} 18. Rag1 {[%clk 0:02:02]}  Qxh3 {[%clk 0:02:10]} 19. Rxh3 {[%clk 0:02:03]}  Kf7 {[%clk 0:02:11]} 20. Nb5 {[%clk 0:01:48]}  Bd8 {[%clk 0:02:02]} 21. Ba5 {[%clk 0:01:40]}  b6 {[%clk 0:02:01]} 22. Bb4 {[%clk 0:01:32]}  a6 {[%clk 0:01:59]} 23. Na3 {[%clk 0:01:17]}  Be7 {[%clk 0:01:55]} 24. Bc3 {[%clk 0:01:14]}  Rag8 {[%clk 0:01:55]} 25. Nc2 {[%clk 0:01:05]}  Ngf8 {[%clk 0:01:52]} 26. Rxg8 {[%clk 0:00:49]}  Rxg8 {[%clk 0:01:51]} 27. Nb4 {[%clk 0:00:38]}  a5 {[%clk 0:01:51]} 28. Nc6 {[%clk 0:00:38]}  Nd7 {[%clk 0:01:48]} 29. Kf1 {[%clk 0:00:30]}  Bf6 {[%clk 0:01:42]} 30. Ng1 {[%clk 0:00:21]}  Rg4 {[%clk 0:01:37]} 31. Nf3 {[%clk 0:00:16]}  Nc5 {[%clk 0:01:36]} 32. Nd2 {[%clk 0:00:07]}  Nf8 {[%clk 0:01:36]} 33. f3 {[%clk 0:00:06]}  Rg3 {[%clk 0:01:30]} 34. Rh2 {[%clk 0:00:04]}  Ng6 {[%clk 0:01:28]} 35. Kf2 {[%clk 0:00:02]}  Bxh4 {[%clk 0:01:27]} 36. Ke2 {[%clk 0:00:03]}  Na4 {[%clk 0:01:21]} 37. Nf1 {[%clk 0:00:03]}  Rg1 {[%clk 0:01:21]} 38. Be1 {[%clk 0:00:02]}  Bxe1 {[%clk 0:01:18]} 39. Kxe1 {[%clk 0:00:02]}  h4 {[%clk 0:01:18]} 40. Kf2 {[%clk 0:00:02]}  Rg3 {[%clk 0:01:09]} 41. b3 {[%clk 0:00:03]}  Nc3 {[%clk 0:01:03]} 42. Nd8+ {[%clk 0:00:03]}  Ke7 {[%clk 0:01:00]} 43. Ne6 {[%clk 0:00:03]}  c5 {[%clk 0:00:58]} 44. Ng7 {[%clk 0:00:03]}  Nxa2 {[%clk 0:00:55]} 45. Nf5+ {[%clk 0:00:03]}  Kf6 {[%clk 0:00:55]} 46. Nxh4 {[%clk 0:00:03]}  Nxh4 {[%clk 0:00:55]} 47. Rxh4 {[%clk 0:00:04]}  Rg6 {[%clk 0:00:55]} 48. Rh8 {[%clk 0:00:04]}  Nc1 {[%clk 0:00:55]} 49. Rb8 {[%clk 0:00:03]}  Ke7 {[%clk 0:00:50]} 50. Rxb6 {[%clk 0:00:03]}  Nd3+ {[%clk 0:00:50]} 51. Ke2 {[%clk 0:00:03]}  Nb4 {[%clk 0:00:50]} 52. Kf2 {[%clk 0:00:04]}  Nc2 {[%clk 0:00:50]} 53. Rb7+ {[%clk 0:00:04]}  Kd8 {[%clk 0:00:50]} 54. Rb8+ {[%clk 0:00:03]}  Kc7 {[%clk 0:00:50]} 55. Ra8 {[%clk 0:00:04]}  Nd4 {[%clk 0:00:48]} 56. Rxa5 {[%clk 0:00:04]}  Nxb3 {[%clk 0:00:47]} 57. Ra4 {[%clk 0:00:03]}  Nd4 {[%clk 0:00:45]} 58. Nd2 {[%clk 0:00:04]}  Nc2 {[%clk 0:00:45]} 59. Ra7+ {[%clk 0:00:03]}  Kb8 {[%clk 0:00:42]} 60. Rf7 {[%clk 0:00:03]}  Ne3 {[%clk 0:00:42]} 61. Ke2 {[%clk 0:00:04]}  Kc8 {[%clk 0:00:40]} 62. Kd3 {[%clk 0:00:04]}  Rg1 {[%clk 0:00:38]} 63. Rh7 {[%clk 0:00:04]}  Rd1 {[%clk 0:00:34]} 64. Ke2 {[%clk 0:00:04]}  Rc1 {[%clk 0:00:32]} 65. Kd3 {[%clk 0:00:05]}  Nc2 {[%clk 0:00:30]} 66. Rg7 {[%clk 0:00:04]}  Nb4+ {[%clk 0:00:29]} 67. Ke2 {[%clk 0:00:04]}  Rc3 {[%clk 0:00:28]} 68. Rh7 {[%clk 0:00:04]}  Nc2 {[%clk 0:00:27]} 69. Rg7 {[%clk 0:00:04]}  Nd4+ {[%clk 0:00:27]} 70. Kf2 {[%clk 0:00:04]}  Rd3 {[%clk 0:00:26]} 71. Ke1 {[%clk 0:00:03]}  Nxf3+ {[%clk 0:00:25]} 72. Nxf3 {[%clk 0:00:03]}  Rxf3 {[%clk 0:00:26]} 73. Rg6 {[%clk 0:00:03]}  Kd7 {[%clk 0:00:26]} 74. Rg7+ {[%clk 0:00:03]}  Ke8 {[%clk 0:00:26]} 75. Rg6 {[%clk 0:00:03]}  Ke7 {[%clk 0:00:27]} 76. Rg7+ {[%clk 0:00:03]}  Kf6 {[%clk 0:00:26]} 77. Rd7 {[%clk 0:00:04]}  Re3+ {[%clk 0:00:27]} 78. Kf2 {[%clk 0:00:03]}  Rxe4 {[%clk 0:00:28]} 79. Rxd6+ {[%clk 0:00:03]}  Kf5 {[%clk 0:00:28]} 80. Rd8 {[%clk 0:00:04]}  Rxc4 {[%clk 0:00:28]} 81. d6 {[%clk 0:00:04]}  Ke4 {[%clk 0:00:27]} 82. d7 {[%clk 0:00:04]}  Rd4 {[%clk 0:00:28]} 83. Ke2 {[%clk 0:00:04]}  c4 {[%clk 0:00:28]} 84. Kf2 {[%clk 0:00:03]}  c3 {[%clk 0:00:28]} 85. Rc8 {[%clk 0:00:03]}  Rxd7 {[%clk 0:00:27]} 86. Rxc3 {[%clk 0:00:04]}  Rd2+ {[%clk 0:00:28]} 87. Ke1 {[%clk 0:00:04]}  Ra2 {[%clk 0:00:29]} 88. Rb3 {[%clk 0:00:04]}  Kf5 {[%clk 0:00:29]} 89. Kf1 {[%clk 0:00:05]}  e4 {[%clk 0:00:28]} 90. Rb8 {[%clk 0:00:04]}  e3 {[%clk 0:00:28]} 91. Rg8 {[%clk 0:00:04]}  Ke4 {[%clk 0:00:28]} 92. Ke1 {[%clk 0:00:04]}  Kf3 {[%clk 0:00:28]} 93. Rb8 {[%clk 0:00:02]}  Ra1+ {[%clk 0:00:28]} 94. Rb1 {[%clk 0:00:01]}  Rxb1# {[%clk 0:00:29]} 0-1


[Site "https://www.chess.com"]

[Event "Titled Tuesday Blitz May 10 Early 2022"]
[White "Maghsoodloo, Parham"]
[Black "Bachmann, Axel"]
[WhiteFideId "12539929"]
[BlackFideId "3700488"]
[WhiteElo "2630"]
[BlackElo "2587"]
[Result "0-1"]
[Round "11"]
[TimeControl "180+1"]
[Date "2022.05.10"]
[WhiteClock "0:00:01"]
[BlackClock "0:00:16"]

1. d4 {[%clk 0:03:00]}  Nf6 {[%clk 0:02:57]} 2. c4 {[%clk 0:03:01]}  g6 {[%clk 0:02:56]} 3. h4 {[%clk 0:02:58]}  c5 {[%clk 0:02:54]} 4. d5 {[%clk 0:02:58]}  e6 {[%clk 0:02:53]} 5. Nc3 {[%clk 0:02:58]}  exd5 {[%clk 0:02:53]} 6. cxd5 {[%clk 0:02:59]}  d6 {[%clk 0:02:54]} 7. e4 {[%clk 0:02:50]}  a6 {[%clk 0:02:51]} 8. a4 {[%clk 0:02:50]}  Bg7 {[%clk 0:02:51]} 9. Nf3 {[%clk 0:02:44]}  Bg4 {[%clk 0:02:46]} 10. Be2 {[%clk 0:02:44]}  Nbd7 {[%clk 0:02:46]} 11. Bf4 {[%clk 0:02:43]}  Qe7 {[%clk 0:02:42]} 12. Nd2 {[%clk 0:02:43]}  Bxe2 {[%clk 0:02:37]} 13. Qxe2 {[%clk 0:02:43]}  Ne5 {[%clk 0:02:21]} 14. a5 {[%clk 0:02:15]}  O-O {[%clk 0:02:14]} 15. Na4 {[%clk 0:02:15]}  Rae8 {[%clk 0:01:56]} 16. O-O {[%clk 0:02:06]}  Nh5 {[%clk 0:01:51]} 17. Bg5 {[%clk 0:02:04]}  Bf6 {[%clk 0:01:51]} 18. Bxf6 {[%clk 0:01:49]}  Qxf6 {[%clk 0:01:52]} 19. g3 {[%clk 0:01:49]}  Qg7 {[%clk 0:01:35]} 20. Ra3 {[%clk 0:01:39]}  f5 {[%clk 0:01:34]} 21. exf5 {[%clk 0:01:39]}  Rxf5 {[%clk 0:01:32]} 22. Re3 {[%clk 0:01:36]}  Ref8 {[%clk 0:01:13]} 23. Nb6 {[%clk 0:01:32]}  g5 {[%clk 0:01:06]} 24. hxg5 {[%clk 0:00:28]}  Rxg5 {[%clk 0:01:07]} 25. Ne4 {[%clk 0:00:23]}  Nf4 {[%clk 0:01:04]} 26. Qd1 {[%clk 0:00:23]}  Nh3+ {[%clk 0:00:52]} 27. Kg2 {[%clk 0:00:23]}  Nf4+ {[%clk 0:00:40]} 28. Kg1 {[%clk 0:00:23]}  Rh5 {[%clk 0:00:40]} 29. f3 {[%clk 0:00:13]}  Nh3+ {[%clk 0:00:25]} 30. Kg2 {[%clk 0:00:13]}  Qh6 {[%clk 0:00:25]} 31. Ree1 {[%clk 0:00:01]}  Kh8 {[%clk 0:00:19]} 32. f4 {[%clk 0:00:01]}  Nxf4+ {[%clk 0:00:19]} 33. Rxf4 {[%clk 0:00:02]}  Rh2+ {[%clk 0:00:16]} 34. Kg1 {[%clk 0:00:01]}  Rxf4 {[%clk 0:00:17]} 35. gxf4 {[%clk 0:00:02]}  Qh3 {[%clk 0:00:17]} 36. Re2 {[%clk 0:00:01]}  Nf3# {[%clk 0:00:16]} 0-1


[Site "https://www.chess.com"]

[Event "Titled Tuesday Blitz May 10 Early 2022"]
[White "Mammadzada, Gunay"]
[Black "Wagner, Dennis"]
[WhiteFideId "13403729"]
[BlackFideId "24650684"]
[WhiteElo "2242"]
[BlackElo "2355"]
[Result "0-1"]
[Round "11"]
[TimeControl "180+1"]
[Date "2022.05.11"]
[WhiteClock "0:00:02"]
[BlackClock "0:00:58"]

1. e4 {[%clk 0:03:00]}  e5 {[%clk 0:02:54]} 2. Nf3 {[%clk 0:03:00]}  Nf6 {[%clk 0:02:53]} 3. Nc3 {[%clk 0:02:58]}  Bb4 {[%clk 0:02:51]} 4. Bc4 {[%clk 0:02:48]}  O-O {[%clk 0:02:50]} 5. O-O {[%clk 0:02:47]}  Bxc3 {[%clk 0:02:46]} 6. dxc3 {[%clk 0:02:46]}  d6 {[%clk 0:02:46]} 7. Bg5 {[%clk 0:02:42]}  h6 {[%clk 0:02:44]} 8. Bh4 {[%clk 0:02:35]}  Re8 {[%clk 0:02:44]} 9. Re1 {[%clk 0:02:33]}  Nbd7 {[%clk 0:02:43]} 10. a4 {[%clk 0:02:27]}  Nf8 {[%clk 0:02:41]} 11. Nd2 {[%clk 0:02:21]}  Ng6 {[%clk 0:02:39]} 12. Bg3 {[%clk 0:02:21]}  a5 {[%clk 0:02:37]} 13. f3 {[%clk 0:02:18]}  Nh5 {[%clk 0:02:36]} 14. Bf2 {[%clk 0:02:18]}  Nhf4 {[%clk 0:02:22]} 15. Nf1 {[%clk 0:02:18]}  Qg5 {[%clk 0:02:22]} 16. Bg3 {[%clk 0:02:14]}  Nh5 {[%clk 0:02:13]} 17. Qc1 {[%clk 0:02:11]}  Nxg3 {[%clk 0:02:06]} 18. hxg3 {[%clk 0:02:09]}  Be6 {[%clk 0:01:55]} 19. Qxg5 {[%clk 0:01:58]}  hxg5 {[%clk 0:01:54]} 20. Bxe6 {[%clk 0:01:50]}  Rxe6 {[%clk 0:01:54]} 21. Ne3 {[%clk 0:01:50]}  Ne7 {[%clk 0:01:54]} 22. Rad1 {[%clk 0:01:44]}  Rf8 {[%clk 0:01:52]} 23. g4 {[%clk 0:01:40]}  g6 {[%clk 0:01:49]} 24. Nd5 {[%clk 0:01:28]}  Nxd5 {[%clk 0:01:46]} 25. Rxd5 {[%clk 0:01:29]}  b6 {[%clk 0:01:46]} 26. b4 {[%clk 0:01:25]}  Ra8 {[%clk 0:01:43]} 27. bxa5 {[%clk 0:01:22]}  c6 {[%clk 0:01:41]} 28. Rd3 {[%clk 0:01:13]}  Rxa5 {[%clk 0:01:41]} 29. Rb1 {[%clk 0:01:14]}  Rxa4 {[%clk 0:01:41]} 30. Rxb6 {[%clk 0:01:13]}  Rc4 {[%clk 0:01:41]} 31. Rb8+ {[%clk 0:01:10]}  Kg7 {[%clk 0:01:41]} 32. Rd8 {[%clk 0:01:11]}  d5 {[%clk 0:01:17]} 33. exd5 {[%clk 0:01:08]}  cxd5 {[%clk 0:01:18]} 34. R8xd5 {[%clk 0:01:06]}  e4 {[%clk 0:01:18]} 35. fxe4 {[%clk 0:00:54]}  Rexe4 {[%clk 0:01:18]} 36. Rxg5 {[%clk 0:00:54]}  Re2 {[%clk 0:01:17]} 37. Kf1 {[%clk 0:00:25]}  Rxc2 {[%clk 0:01:17]} 38. Re5 {[%clk 0:00:20]}  Rxg4 {[%clk 0:01:16]} 39. g3 {[%clk 0:00:18]}  Rc4 {[%clk 0:01:09]} 40. Ree3 {[%clk 0:00:17]}  f5 {[%clk 0:01:01]} 41. Ke1 {[%clk 0:00:16]}  Kh6 {[%clk 0:01:01]} 42. Kd1 {[%clk 0:00:17]}  Rg2 {[%clk 0:01:01]} 43. Rd2 {[%clk 0:00:14]}  Rg1+ {[%clk 0:01:02]} 44. Kc2 {[%clk 0:00:14]}  Kg5 {[%clk 0:01:02]} 45. Kb3 {[%clk 0:00:12]}  Rc6 {[%clk 0:01:02]} 46. c4 {[%clk 0:00:12]}  Rb1+ {[%clk 0:01:01]} 47. Kc2 {[%clk 0:00:04]}  Rb4 {[%clk 0:01:01]} 48. Rc3 {[%clk 0:00:03]}  Rbxc4 {[%clk 0:01:02]} 49. Rxc4 {[%clk 0:00:02]}  Rxc4+ {[%clk 0:01:03]} 50. Kd3 {[%clk 0:00:03]}  Re4 {[%clk 0:01:01]} 51. Rb2 {[%clk 0:00:01]}  Kg4 {[%clk 0:00:58]} 52. Rb6 {[%clk 0:00:02]}  g5 {[%clk 0:00:58]} 53. Rg6 {[%clk 0:00:01]}  Re1 {[%clk 0:00:57]} 54. Kd4 {[%clk 0:00:01]}  Rg1 {[%clk 0:00:57]} 55. Ke3 {[%clk 0:00:01]}  Rxg3+ {[%clk 0:00:57]} 56. Kf2 {[%clk 0:00:02]}  f4 {[%clk 0:00:58]} 0-1


[Site "https://www.chess.com"]

[Event "Titled Tuesday Blitz May 10 Early 2022"]
[White "Martic, Ivan"]
[Black "Demchenko, Anton"]
[WhiteFideId "929301"]
[BlackFideId "4160258"]
[WhiteElo "2317"]
[BlackElo "2539"]
[Result "0-1"]
[Round "11"]
[TimeControl "180+1"]
[Date "2022.05.11"]
[WhiteClock "0:00:15"]
[BlackClock "0:01:20"]

1. d4 {[%clk 0:03:00]}  Nf6 {[%clk 0:03:00]} 2. Nf3 {[%clk 0:03:00]}  e6 {[%clk 0:03:00]} 3. c4 {[%clk 0:02:57]}  b6 {[%clk 0:02:59]} 4. g3 {[%clk 0:02:54]}  Bb7 {[%clk 0:02:59]} 5. Bg2 {[%clk 0:02:54]}  Bb4+ {[%clk 0:03:00]} 6. Bd2 {[%clk 0:02:52]}  Bxd2+ {[%clk 0:03:00]} 7. Qxd2 {[%clk 0:02:52]}  d6 {[%clk 0:03:01]} 8. Nc3 {[%clk 0:02:44]}  Nbd7 {[%clk 0:03:01]} 9. O-O {[%clk 0:02:38]}  Ne4 {[%clk 0:03:00]} 10. Qe3 {[%clk 0:02:34]}  Nxc3 {[%clk 0:02:59]} 11. Qxc3 {[%clk 0:02:35]}  O-O {[%clk 0:02:58]} 12. Qc2 {[%clk 0:02:22]}  f5 {[%clk 0:02:46]} 13. d5 {[%clk 0:02:13]}  e5 {[%clk 0:02:44]} 14. e4 {[%clk 0:02:08]}  f4 {[%clk 0:02:41]} 15. b4 {[%clk 0:01:52]}  Qe7 {[%clk 0:02:18]} 16. Bh3 {[%clk 0:01:45]}  Kh8 {[%clk 0:02:09]} 17. Kg2 {[%clk 0:01:24]}  Nf6 {[%clk 0:02:07]} 18. Ng5 {[%clk 0:01:20]}  Nxd5 {[%clk 0:02:00]} 19. cxd5 {[%clk 0:01:03]}  Qxg5 {[%clk 0:02:00]} 20. Qxc7 {[%clk 0:01:03]}  Ba6 {[%clk 0:02:01]} 21. Qxd6 {[%clk 0:00:53]}  Rf6 {[%clk 0:01:45]} 22. Qd7 {[%clk 0:00:47]}  fxg3 {[%clk 0:01:37]} 23. hxg3 {[%clk 0:00:44]}  Raf8 {[%clk 0:01:35]} 24. Bf5 {[%clk 0:00:42]}  Bxf1+ {[%clk 0:01:32]} 25. Rxf1 {[%clk 0:00:43]}  g6 {[%clk 0:01:32]} 26. Be6 {[%clk 0:00:40]}  Qd2 {[%clk 0:01:30]} 27. Qd6 {[%clk 0:00:20]}  Rxf2+ {[%clk 0:01:20]} 28. Rxf2 {[%clk 0:00:20]}  Rxf2+ {[%clk 0:01:21]} 29. Kh3 {[%clk 0:00:20]}  Rh2+ {[%clk 0:01:21]} 30. Kg4 {[%clk 0:00:21]}  h5+ {[%clk 0:01:21]} 31. Kf3 {[%clk 0:00:15]}  Rf2# {[%clk 0:01:20]} 0-1


[Site "https://www.chess.com"]

[Event "Titled Tuesday Blitz May 10 Early 2022"]
[White "Martin Carmona, Gaston Manuel"]
[Black "Cherniaiev, Tykhon"]
[WhiteFideId "22284567"]
[BlackFideId "14182360"]
[WhiteElo "2162"]
[BlackElo "2289"]
[Result "0-1"]
[Round "11"]
[TimeControl "180+1"]
[Date "2022.05.11"]
[WhiteClock "0:00:11"]
[BlackClock "0:00:15"]

1. e4 {[%clk 0:03:00]}  c5 {[%clk 0:02:58]} 2. Nf3 {[%clk 0:02:57]}  e6 {[%clk 0:02:56]} 3. d4 {[%clk 0:02:57]}  cxd4 {[%clk 0:02:57]} 4. Nxd4 {[%clk 0:02:57]}  a6 {[%clk 0:02:57]} 5. c4 {[%clk 0:02:55]}  Nf6 {[%clk 0:02:57]} 6. Nc3 {[%clk 0:02:49]}  Qc7 {[%clk 0:02:57]} 7. Be2 {[%clk 0:02:44]}  Nc6 {[%clk 0:02:57]} 8. Be3 {[%clk 0:02:42]}  Be7 {[%clk 0:02:56]} 9. Rc1 {[%clk 0:02:41]}  O-O {[%clk 0:02:56]} 10. O-O {[%clk 0:02:40]}  b6 {[%clk 0:02:56]} 11. f3 {[%clk 0:02:40]}  Bb7 {[%clk 0:02:56]} 12. b3 {[%clk 0:02:40]}  Rac8 {[%clk 0:02:51]} 13. Qd2 {[%clk 0:02:39]}  Rfd8 {[%clk 0:02:50]} 14. Rfd1 {[%clk 0:02:39]}  Qb8 {[%clk 0:02:41]} 15. Nc2 {[%clk 0:02:30]}  Ba8 {[%clk 0:02:35]} 16. Bf1 {[%clk 0:02:30]}  Nb4 {[%clk 0:02:07]} 17. Qf2 {[%clk 0:02:22]}  Nxc2 {[%clk 0:02:05]} 18. Rxc2 {[%clk 0:02:23]}  Bc5 {[%clk 0:02:04]} 19. Bxc5 {[%clk 0:02:15]}  bxc5 {[%clk 0:02:03]} 20. Na4 {[%clk 0:02:16]}  d6 {[%clk 0:01:54]} 21. e5 {[%clk 0:02:16]}  dxe5 {[%clk 0:01:53]} 22. Rxd8+ {[%clk 0:02:16]}  Rxd8 {[%clk 0:01:54]} 23. Nxc5 {[%clk 0:02:16]}  e4 {[%clk 0:01:51]} 24. fxe4 {[%clk 0:02:12]}  Nxe4 {[%clk 0:01:48]} 25. Nxe4 {[%clk 0:02:12]}  Bxe4 {[%clk 0:01:47]} 26. Rd2 {[%clk 0:02:13]}  h5 {[%clk 0:01:19]} 27. Rd4 {[%clk 0:02:11]}  Bc6 {[%clk 0:01:15]} 28. Be2 {[%clk 0:01:58]}  g6 {[%clk 0:00:56]} 29. c5 {[%clk 0:01:57]}  e5 {[%clk 0:00:51]} 30. Rxd8+ {[%clk 0:01:54]}  Qxd8 {[%clk 0:00:51]} 31. Bxa6 {[%clk 0:01:40]}  Qd1+ {[%clk 0:00:50]} 32. Bf1 {[%clk 0:01:23]}  Bb5 {[%clk 0:00:49]} 33. c6 {[%clk 0:01:23]}  Bxc6 {[%clk 0:00:48]} 34. Qe2 {[%clk 0:01:23]}  Qd4+ {[%clk 0:00:47]} 35. Qf2 {[%clk 0:01:23]}  Qc3 {[%clk 0:00:45]} 36. Qe2 {[%clk 0:01:18]}  e4 {[%clk 0:00:44]} 37. Qc4 {[%clk 0:01:14]}  Qe3+ {[%clk 0:00:43]} 38. Kh1 {[%clk 0:01:15]}  Qf2 {[%clk 0:00:41]} 39. Qe2 {[%clk 0:01:10]}  Qf6 {[%clk 0:00:39]} 40. a4 {[%clk 0:01:05]}  Qa1 {[%clk 0:00:36]} 41. h4 {[%clk 0:01:01]}  Qb1 {[%clk 0:00:33]} 42. Qc4 {[%clk 0:01:01]}  e3 {[%clk 0:00:28]} 43. Kh2 {[%clk 0:01:01]}  Bd7 {[%clk 0:00:24]} 44. a5 {[%clk 0:00:59]}  Be6 {[%clk 0:00:23]} 45. Qd3 {[%clk 0:00:34]}  Qe1 {[%clk 0:00:21]} 46. Qd8+ {[%clk 0:00:28]}  Kh7 {[%clk 0:00:20]} 47. Bb5 {[%clk 0:00:17]}  Qb4 {[%clk 0:00:15]} 48. Be2 {[%clk 0:00:14]}  Qf4+ {[%clk 0:00:15]} 49. Kh1 {[%clk 0:00:12]}  Qf2 {[%clk 0:00:15]} 50. Bb5 {[%clk 0:00:05]}  e2 {[%clk 0:00:13]} 51. Bxe2 {[%clk 0:00:06]}  Qxe2 {[%clk 0:00:14]} 52. b4 {[%clk 0:00:06]}  Qe1+ {[%clk 0:00:14]} 53. Kh2 {[%clk 0:00:06]}  Qxb4 {[%clk 0:00:12]} 54. Qb6 {[%clk 0:00:05]}  Qxb6 {[%clk 0:00:11]} 55. axb6 {[%clk 0:00:06]}  Bd5 {[%clk 0:00:12]} 56. g3 {[%clk 0:00:06]}  Kg7 {[%clk 0:00:12]} 57. Kg1 {[%clk 0:00:06]}  Kf6 {[%clk 0:00:12]} 58. Kf2 {[%clk 0:00:07]}  Kf5 {[%clk 0:00:13]} 59. Ke3 {[%clk 0:00:08]}  Kg4 {[%clk 0:00:14]} 60. Kd4 {[%clk 0:00:09]}  Bh1 {[%clk 0:00:14]} 61. Ke5 {[%clk 0:00:09]}  Kxg3 {[%clk 0:00:14]} 62. Kf6 {[%clk 0:00:10]}  Kxh4 {[%clk 0:00:15]} 63. Kxf7 {[%clk 0:00:11]}  g5 {[%clk 0:00:15]} 0-1


[Site "https://www.chess.com"]

[Event "Titled Tuesday Blitz May 10 Early 2022"]
[White "Mirzoev, Azer"]
[Black "Jaskolka, Tomasz"]
[WhiteFideId "13400304"]
[BlackFideId "1170791"]
[WhiteElo "2525"]
[BlackElo "2073"]
[Result "1-0"]
[Round "11"]
[TimeControl "180+1"]
[Date "2022.05.11"]
[WhiteClock "0:00:47"]
[BlackClock "0:00:18"]

1. d4 {[%clk 0:03:00]}  Nf6 {[%clk 0:02:57]} 2. c4 {[%clk 0:03:00]}  e6 {[%clk 0:02:58]} 3. Nc3 {[%clk 0:03:00]}  Bb4 {[%clk 0:02:58]} 4. e3 {[%clk 0:03:01]}  O-O {[%clk 0:02:58]} 5. Ne2 {[%clk 0:03:01]}  d6 {[%clk 0:02:58]} 6. a3 {[%clk 0:03:01]}  Bxc3+ {[%clk 0:02:58]} 7. Nxc3 {[%clk 0:03:01]}  b6 {[%clk 0:02:59]} 8. e4 {[%clk 0:03:00]}  Bb7 {[%clk 0:03:00]} 9. f3 {[%clk 0:03:01]}  Nbd7 {[%clk 0:02:59]} 10. Bg5 {[%clk 0:03:00]}  h6 {[%clk 0:02:59]} 11. Bh4 {[%clk 0:03:00]}  e5 {[%clk 0:02:59]} 12. d5 {[%clk 0:03:00]}  a6 {[%clk 0:02:54]} 13. Be2 {[%clk 0:03:00]}  Qe8 {[%clk 0:02:47]} 14. O-O {[%clk 0:02:59]}  Nh5 {[%clk 0:02:45]} 15. Re1 {[%clk 0:02:57]}  Nf4 {[%clk 0:02:42]} 16. Bf1 {[%clk 0:02:56]}  f6 {[%clk 0:02:37]} 17. Bg3 {[%clk 0:02:53]}  g5 {[%clk 0:02:36]} 18. b4 {[%clk 0:02:52]}  Qg6 {[%clk 0:02:25]} 19. Qd2 {[%clk 0:02:46]}  h5 {[%clk 0:02:24]} 20. Bf2 {[%clk 0:02:39]}  h4 {[%clk 0:02:03]} 21. Nd1 {[%clk 0:02:27]}  g4 {[%clk 0:01:36]} 22. fxg4 {[%clk 0:02:25]}  Qxg4 {[%clk 0:01:36]} 23. Kh1 {[%clk 0:02:11]}  Kf7 {[%clk 0:01:22]} 24. Ne3 {[%clk 0:02:08]}  Qg5 {[%clk 0:01:21]} 25. Nf5 {[%clk 0:02:05]}  Rh8 {[%clk 0:01:18]} 26. Be3 {[%clk 0:02:01]}  Rag8 {[%clk 0:01:12]} 27. Ra2 {[%clk 0:01:58]}  Qg4 {[%clk 0:01:02]} 28. h3 {[%clk 0:01:53]}  Qg5 {[%clk 0:00:55]} 29. Qc1 {[%clk 0:01:34]}  Nf8 {[%clk 0:00:55]} 30. Bxf4 {[%clk 0:01:29]}  exf4 {[%clk 0:00:55]} 31. Rf2 {[%clk 0:01:30]}  Ng6 {[%clk 0:00:55]} 32. c5 {[%clk 0:01:27]}  dxc5 {[%clk 0:00:27]} 33. bxc5 {[%clk 0:01:28]}  Rc8 {[%clk 0:00:27]} 34. c6 {[%clk 0:01:26]}  Ba8 {[%clk 0:00:27]} 35. Bxa6 {[%clk 0:01:24]}  Rcg8 {[%clk 0:00:28]} 36. Bf1 {[%clk 0:01:24]}  Ne5 {[%clk 0:00:27]} 37. Qxf4 {[%clk 0:01:21]}  Qg6 {[%clk 0:00:27]} 38. Qxe5 {[%clk 0:01:06]}  fxe5 {[%clk 0:00:26]} 39. Nxh4+ {[%clk 0:01:06]}  Qf6 {[%clk 0:00:27]} 40. Rxf6+ {[%clk 0:01:05]}  Kxf6 {[%clk 0:00:28]} 41. Nf3 {[%clk 0:01:04]}  Rh5 {[%clk 0:00:23]} 42. Kh2 {[%clk 0:01:02]}  Ke7 {[%clk 0:00:23]} 43. a4 {[%clk 0:01:01]}  Kd6 {[%clk 0:00:23]} 44. Bb5 {[%clk 0:01:00]}  Rh6 {[%clk 0:00:19]} 45. Re3 {[%clk 0:00:55]}  Rhg6 {[%clk 0:00:20]} 46. g4 {[%clk 0:00:54]}  Rh8 {[%clk 0:00:19]} 47. Kg3 {[%clk 0:00:54]}  Rf8 {[%clk 0:00:20]} 48. Nh4 {[%clk 0:00:53]}  Rgf6 {[%clk 0:00:20]} 49. Nf5+ {[%clk 0:00:53]}  Kc5 {[%clk 0:00:21]} 50. Rc3+ {[%clk 0:00:52]}  Kb4 {[%clk 0:00:21]} 51. Rc1 {[%clk 0:00:52]}  Rh8 {[%clk 0:00:16]} 52. h4 {[%clk 0:00:51]}  Rf7 {[%clk 0:00:16]} 53. h5 {[%clk 0:00:50]}  Rg8 {[%clk 0:00:16]} 54. Kh4 {[%clk 0:00:49]}  Rgf8 {[%clk 0:00:16]} 55. h6 {[%clk 0:00:48]}  Rf6 {[%clk 0:00:16]} 56. g5 {[%clk 0:00:47]}  Rxf5 {[%clk 0:00:17]} 57. exf5 {[%clk 0:00:47]}  Rxf5 {[%clk 0:00:17]} 58. g6 {[%clk 0:00:47]}  Rf6 {[%clk 0:00:18]} 59. Kg5 {[%clk 0:00:47]} 1-0


[Site "https://www.chess.com"]